bitfinex/quotes_BTCUSD_20241004
["timestamp","ask_amount","ask_price","bid_price","bid_amount"]
[1728014196115,0.20865009,61087.0,61086.0,0.001636]
[1728014200407,0.2578477,61087.0,61086.0,0.001636]
[1728014202697,0.2558477,61087.0,61086.0,0.001636]
[1728014203557,0.25584646,61087.0,61086.0,0.001636]
[1728014204657,0.25784646,61087.0,61086.0,0.001636]
[1728014206618,0.25785982,61087.0,61086.0,0.001636]
[1728014208379,0.25585835,61087.0,61086.0,0.001636]
[1728014208825,0.25785835,61087.0,61086.0,0.001636]
[1728014211065,0.25785835,61087.0,61086.0,0.00158712]
[1728014211497,0.25585835,61087.0,61086.0,0.00158712]
[1728014211716,0.25785835,61087.0,61086.0,0.00158712]
[1728014213286,0.2578585,61087.0,61086.0,0.00158712]
[1728014213998,0.25788881,61087.0,61086.0,0.00158712]
[1728014215091,0.25588881,61087.0,61086.0,0.00158712]
[1728014215295,0.25788881,61087.0,61086.0,0.00158712]
[1728014215721,0.25588881,61087.0,61086.0,0.00158712]
[1728014215934,0.25788881,61087.0,61086.0,0.00158712]
[1728014216811,0.24056174,61087.0,61086.0,0.00158712]
[1728014217071,0.25788899,61087.0,61086.0,0.00158712]
[1728014217690,0.25788962,61087.0,61086.0,0.00158712]
[1728014217903,0.25588962,61087.0,61086.0,0.00158712]
[1728014218354,0.25788962,61087.0,61086.0,0.00158712]
[1728014220187,0.24056237,61087.0,61086.0,0.00158712]
[1728014220404,0.25790036,61087.0,61086.0,0.00158712]
[1728014221698,0.25790158,61087.0,61086.0,0.00158712]
[1728014225364,0.20870474,61087.0,61086.0,0.00158712]
[1728014225591,0.20670474,61087.0,61086.0,0.00158712]
[1728014225795,0.20870474,61087.0,61086.0,0.00158712]
[1728014226241,0.20861537,61087.0,61086.0,0.00158712]
[1728014228014,0.20661537,61087.0,61086.0,0.00158712]
[1728014228442,0.20861537,61087.0,61086.0,0.00158712]
[1728014228690,0.20661537,61087.0,61086.0,0.00158712]
[1728014229148,0.20861537,61087.0,61086.0,0.00158712]
[1728014229664,0.19136675,61087.0,61086.0,0.00158712]
[1728014229876,0.20862118,61087.0,61086.0,0.00158712]
[1728014232220,0.20943918,61087.0,61086.0,0.00158712]
[1728014232643,0.18377243,61087.0,61086.0,0.00158712]
[1728014232872,0.18177243,61087.0,61086.0,0.00158712]
[1728014233078,0.166518,61087.0,61086.0,0.00158712]
[1728014233303,0.18377274,61087.0,61086.0,0.00158712]
[1728014233508,0.25757316,61087.0,61086.0,0.00158712]
[1728014233932,0.24031842,61087.0,61086.0,0.00158712]
[1728014234136,0.25757199,61087.0,61086.0,0.00158712]
[1728014236205,0.25758401,61087.0,61086.0,0.00158712]
[1728014238472,0.24033044,61087.0,61086.0,0.00158712]
[1728014241032,0.53991,61087.0,61086.0,0.00158712]
[1728014241250,0.46609756,61087.0,61086.0,0.00158712]
[1728014241656,0.56609756,61087.0,61086.0,0.00158712]
[1728014242059,0.56809756,61087.0,61086.0,0.00158712]
[1728014242269,0.56609756,61087.0,61086.0,0.00258712]
[1728014242474,0.72928427,61087.0,61086.0,0.00258712]
[1728014242684,0.73128427,61087.0,61086.0,0.00258712]
[1728014242892,0.75495544,61087.0,61086.0,0.00158712]
[1728014243094,0.75495544,61087.0,61086.0,0.00258712]
[1728014243302,0.7740879,61087.0,61086.0,0.00358712]
[1728014243510,0.7720879,61087.0,61086.0,0.00258712]
[1728014243718,0.7720879,61087.0,61086.0,0.00358712]
[1728014243719,0.7740879,61087.0,61086.0,0.00358712]
[1728014244128,0.74841649,61087.0,61086.0,0.00358712]
[1728014244435,0.74841649,61087.0,61086.0,0.00258712]
[1728014244730,0.89965371,61087.0,61086.0,0.00358712]
[1728014245365,0.89965371,61087.0,61086.0,0.00258712]
[1728014245366,0.89565371,61087.0,61086.0,0.00258712]
[1728014245554,0.89965371,61087.0,61086.0,0.00358712]
[1728014246033,0.89765371,61087.0,61086.0,0.00258712]
[1728014246248,0.89761997,61087.0,61086.0,0.00258712]
[1728014246475,0.75041649,61087.0,61086.0,0.00258712]
[1728014246677,0.75441649,61087.0,61086.0,0.00358712]
[1728014247091,0.77608802,61087.0,61086.0,0.00258712]
[1728014247955,0.77808802,61087.0,61086.0,0.00358712]
[1728014248396,0.75241649,61087.0,61086.0,0.00358712]
[1728014250964,0.75236467,61087.0,61086.0,0.00358712]
[1728014251186,0.73528427,61087.0,61086.0,0.00358712]
[1728014251653,0.77803566,61087.0,61086.0,0.00358712]
[1728014252336,0.61284895,61087.0,61086.0,0.00358712]
[1728014254476,0.61484895,61087.0,61086.0,0.00358712]
[1728014255244,0.61284895,61087.0,61086.0,0.00358712]
[1728014255446,0.61484895,61087.0,61086.0,0.00358712]
[1728014255867,0.61084895,61087.0,61086.0,0.00258712]
[1728014256311,0.61484895,61087.0,61086.0,0.00358712]
[1728014256620,0.61284895,61087.0,61086.0,0.00258712]
[1728014256752,0.61484895,61087.0,61086.0,0.00358712]
[1728014258554,0.73735549,61087.0,61086.0,0.00358712]
[1728014260219,0.9005422,61087.0,61086.0,0.00358712]
[1728014260971,0.90050393,61087.0,61086.0,0.00358712]
[1728014263024,0.77399739,61087.0,61086.0,0.00258712]
[1728014263207,0.89452905,61087.0,61086.0,0.00158712]
[1728014263410,0.89452905,61087.0,61086.0,0.00209581]
[1728014263411,0.89852905,61087.0,61086.0,0.00209581]
[1728014263609,0.90052905,61087.0,61086.0,0.00309581]
[1728014264031,0.89852905,61087.0,61086.0,0.00209581]
[1728014264234,0.90052905,61087.0,61086.0,0.00309581]
[1728014264475,0.77799739,61087.0,61086.0,0.00309581]
[1728014264706,0.77599739,61087.0,61086.0,0.00309581]
[1728014264973,0.90053236,61087.0,61086.0,0.00309581]
[1728014265395,0.77799739,61087.0,61086.0,0.00309581]
[1728014265605,0.90053411,61087.0,61086.0,0.00309581]
[1728014266024,0.75232585,61087.0,61086.0,0.00309581]
[1728014267589,0.73528427,61087.0,61086.0,0.00309581]
[1728014267848,0.58718524,61087.0,61086.0,0.00309581]
[1728014268091,0.50988524,61087.0,61086.0,0.00309581]
[1728014269337,0.53555682,61087.0,61086.0,0.00309581]
[1728014270207,0.163727,61077.0,61076.0,0.22480376]
[1728014270418,0.40629424,61077.0,61076.0,0.22480376]
[1728014270648,0.40629424,61077.0,61067.0,0.40843624]
[1728014270649,0.163744,61071.0,61067.0,0.40843624]
[1728014271126,0.01704011,61070.0,61053.0,0.24468224]
[1728014271355,0.0170513,61069.0,61068.0,0.16375]
[1728014273061,0.0170513,61069.0,61068.0,0.16575]
[1728014273260,0.0170513,61069.0,61068.0,0.33445]
[1728014273464,0.04272435,61069.0,61068.0,0.33445]
[1728014274347,0.04274746,61069.0,61068.0,0.33545]
[1728014276323,0.04274746,61069.0,61068.0,0.30538714]
[1728014277862,0.04274746,61069.0,61068.0,0.30620514]
[1728014280724,0.02567305,61069.0,61068.0,0.30620514]
[1728014280954,0.04273765,61069.0,61068.0,0.30620514]
[1728014281179,0.05980241,61069.0,61068.0,0.30620514]
[1728014282560,0.05980241,61069.0,61068.0,0.003818]
[1728014282799,0.34903097,61069.0,61068.0,0.003818]
[1728014283283,0.34902865,61069.0,61068.0,0.003818]
[1728014283497,0.34902865,61069.0,61068.0,0.002818]
[1728014284179,0.34902865,61069.0,61068.0,0.000818]
[1728014284596,0.35202865,61069.0,61068.0,0.000818]
[1728014285027,0.35202865,61069.0,61068.0,0.001818]
[1728014285442,0.35202865,61069.0,61068.0,0.000818]
[1728014285652,0.35602865,61069.0,61068.0,0.000818]
[1728014285866,0.35302865,61069.0,61068.0,0.000818]
[1728014286498,0.40211461,61069.0,61068.0,0.000818]
[1728014286711,0.40511461,61069.0,61068.0,0.000818]
[1728014288399,0.40516379,61069.0,61068.0,0.000818]
[1728014289048,0.38809919,61069.0,61068.0,0.000818]
[1728014289889,0.3880441,61069.0,61068.0,0.000818]
[1728014290106,0.3896821,61069.0,61068.0,0.000818]
[1728014290385,0.3470017,61069.0,61068.0,0.000818]
[1728014290603,0.36400882,61069.0,61068.0,0.000818]
[1728014291021,0.23852926,61069.0,61068.0,0.000818]
[1728014292518,0.18939412,61069.0,61068.0,0.000818]
[1728014292723,0.18639412,61069.0,61068.0,0.000818]
[1728014292923,0.18239412,61069.0,61068.0,0.000818]
[1728014293095,0.18539412,61069.0,61068.0,0.000818]
[1728014293299,0.18939412,61069.0,61068.0,0.000818]
[1728014293727,0.21506839,61069.0,61068.0,0.000818]
[1728014295137,0.05131939,61069.0,61068.0,0.164569]
[1728014295452,0.05131939,61069.0,61068.0,0.335669]
[1728014295986,0.04831939,61069.0,61068.0,0.335669]
[1728014296210,0.04431939,61069.0,61068.0,0.335669]
[1728014296379,0.04431939,61069.0,61068.0,0.334769]
[1728014296994,0.01864512,61069.0,61068.0,0.334769]
[1728014297496,0.01864512,61069.0,61068.0,0.1711]
[1728014297712,0.01864512,61069.0,61068.0,0.334851]
[1728014298819,0.01855965,61069.0,61068.0,0.334851]
[1728014299921,0.01855965,61069.0,61068.0,0.1711]
[1728014300347,0.04423321,61069.0,61068.0,0.1711]
[1728014300594,0.01855761,61069.0,61068.0,0.1711]
[1728014300799,0.01855761,61069.0,61068.0,0.334851]
[1728014302509,0.01853573,61069.0,61068.0,0.33567]
[1728014302955,0.001638,61069.0,61068.0,0.33567]
[1728014307690,0.001638,61069.0,61068.0,0.000819]
[1728014307899,0.19951409,61069.0,61068.0,0.000819]
[1728014308973,0.21646929,61069.0,61068.0,0.000819]
[1728014309633,0.1823422,61069.0,61068.0,0.000819]
[1728014309855,0.165387,61069.0,61068.0,0.000819]
[1728014310058,0.18233951,61069.0,61068.0,0.000819]
[1728014310488,0.18433951,61069.0,61068.0,0.000819]
[1728014310940,0.18333951,61069.0,61068.0,0.000819]
[1728014311351,0.18433951,61069.0,61068.0,0.000819]
[1728014313257,0.02059051,61069.0,61068.0,0.077419]
[1728014313939,0.002638,61069.0,61068.0,0.077419]
[1728014314169,0.001638,61069.0,61068.0,0.077419]
[1728014314401,0.002638,61069.0,61068.0,0.077419]
[1728014314881,0.001638,61069.0,61068.0,0.077419]
[1728014315104,0.001638,61069.0,61068.0,0.078419]
[1728014315778,0.165387,61069.0,61068.0,0.078419]
[1728014316055,0.165387,61069.0,61068.0,0.001819]
[1728014316787,0.165387,61069.0,61068.0,0.002819]
[1728014317017,0.165387,61069.0,61068.0,0.001819]
[1728014317217,0.165387,61069.0,61068.0,0.000819]
[1728014317439,0.166387,61069.0,61068.0,0.001819]
[1728014317893,0.166387,61069.0,61068.0,0.000819]
[1728014318105,0.003638,61069.0,61065.0,0.08754084]
[1728014318307,0.163755,61067.0,61065.0,0.08754084]
[1728014319172,0.163755,61067.0,61064.0,0.001636]
[1728014319173,0.35318395,61067.0,61064.0,0.001636]
[1728014319375,0.163758,61066.0,61064.0,0.001636]
[1728014320258,0.163757,61066.0,61064.0,0.001636]
[1728014321134,0.163757,61066.0,61064.0,0.002636]
[1728014321351,0.163757,61066.0,61064.0,0.003636]
[1728014321579,0.163757,61066.0,61064.0,0.005636]
[1728014321997,0.163757,61066.0,61064.0,0.003636]
[1728014322464,0.163759,61065.0,61064.0,0.003636]
[1728014322683,0.002,61066.0,61064.0,0.003636]
[1728014322900,0.165759,61066.0,61064.0,0.001636]
[1728014323122,0.167759,61066.0,61064.0,0.001636]
[1728014323348,0.165759,61066.0,61064.0,0.001636]
[1728014323558,0.163759,61066.0,61064.0,0.001636]
[1728014323995,0.164759,61066.0,61064.0,0.001636]
[1728014324211,0.165759,61066.0,61064.0,0.001636]
[1728014324428,0.164759,61066.0,61064.0,0.001636]
[1728014324644,0.163759,61066.0,61064.0,0.001636]
[1728014324848,0.163759,61066.0,61064.0,0.009636]
[1728014325401,0.02567395,61067.0,61064.0,0.009636]
[1728014325600,0.02567395,61067.0,61065.0,0.163759]
[1728014326821,0.02567395,61067.0,61065.0,0.167578]
[1728014327279,0.02567395,61067.0,61065.0,0.003819]
[1728014327999,0.02567395,61067.0,61065.0,0.167578]
[1728014328194,0.02567395,61067.0,61065.0,0.170578]
[1728014330868,0.02567395,61067.0,61065.0,0.006819]
[1728014331100,0.02567395,61067.0,61066.0,0.330257]
[1728014332398,0.02567395,61067.0,61066.0,0.333257]
[1728014333051,0.02567395,61067.0,61066.0,0.336257]
[1728014334141,0.04280369,61067.0,61066.0,0.333257]
[1728014334325,0.04280369,61067.0,61066.0,0.330257]
[1728014336958,0.02567395,61067.0,61066.0,0.330257]
[1728014337182,0.04280065,61067.0,61066.0,0.330257]
[1728014337398,0.0171267,61067.0,61066.0,0.330257]
[1728014338293,0.0181267,61067.0,61066.0,0.330257]
[1728014338503,0.0181267,61067.0,61066.0,0.331076]
[1728014339126,0.0191267,61067.0,61066.0,0.331076]
[1728014339550,0.0171267,61067.0,61066.0,0.331076]
[1728014339990,0.0181267,61067.0,61066.0,0.331076]
[1728014340195,0.0191267,61067.0,61066.0,0.331076]
[1728014340415,0.002,61067.0,61066.0,0.331076]
[1728014340628,0.02567374,61067.0,61066.0,0.331076]
[1728014340841,0.02767374,61067.0,61066.0,0.331076]
[1728014341064,0.04485531,61067.0,61066.0,0.331076]
[1728014341577,0.04385531,61067.0,61066.0,0.331076]
[1728014342096,0.04285531,61067.0,61066.0,0.331076]
[1728014342305,0.04385531,61067.0,61066.0,0.331076]
[1728014342746,0.04485531,61067.0,61066.0,0.331076]
[1728014342965,0.02767374,61067.0,61066.0,0.331076]
[1728014343219,0.04485968,61067.0,61066.0,0.331076]
[1728014345751,0.04285968,61067.0,61066.0,0.331076]
[1728014346226,0.04385968,61067.0,61066.0,0.331076]
[1728014346736,0.04285968,61067.0,61066.0,0.331076]
[1728014346976,0.04282334,61067.0,61066.0,0.335076]
[1728014347215,0.04282334,61067.0,61066.0,0.339076]
[1728014347704,0.0171496,61067.0,61066.0,0.339076]
[1728014348438,0.0171496,61067.0,61066.0,0.52726271]
[1728014348682,0.001638,61069.0,61068.0,0.188751]
[1728014348918,0.001638,61069.0,61068.0,0.52901213]
[1728014349154,0.001638,61069.0,61068.0,0.52573771]
[1728014349874,0.001638,61069.0,61068.0,0.64852641]
[1728014350105,0.001638,61069.0,61068.0,0.67653073]
[1728014350615,0.001638,61069.0,61068.0,0.63792862]
[1728014350832,0.001638,61069.0,61068.0,0.65192862]
[1728014351075,0.02730577,61069.0,61068.0,0.63792862]
[1728014351292,0.02730577,61069.0,61068.0,0.65192862]
[1728014351512,0.02730577,61069.0,61068.0,0.55373771]
[1728014351982,0.02730577,61069.0,61068.0,0.53973771]
[1728014352201,0.02730577,61069.0,61068.0,0.63792862]
[1728014352437,0.02730577,61069.0,61068.0,0.63592862]
[1728014352661,0.02730577,61069.0,61068.0,0.61133037]
[1728014352886,0.02730577,61069.0,61068.0,0.61333037]
[1728014353124,0.02730577,61069.0,61068.0,0.61133037]
[1728014353355,0.02730577,61069.0,61068.0,0.62533037]
[1728014353589,0.02730577,61069.0,61068.0,0.55173771]
[1728014353816,0.02730577,61069.0,61068.0,0.52373771]
[1728014354037,0.02730577,61069.0,61068.0,0.58678943]
[1728014354310,0.02730577,61069.0,61068.0,0.57278943]
[1728014354544,0.02730577,61069.0,61068.0,0.337551]
[1728014354983,0.0443555,61069.0,61068.0,0.337551]
[1728014355190,0.0443555,61069.0,61068.0,0.351551]
[1728014356275,0.0443555,61069.0,61068.0,0.365551]
[1728014356487,0.0443555,61069.0,61068.0,0.351551]
[1728014356714,0.0443555,61069.0,61068.0,0.365551]
[1728014356994,0.0443555,61069.0,61068.0,0.351551]
[1728014357216,0.0443555,61069.0,61068.0,0.365551]
[1728014357685,0.0443555,61069.0,61068.0,0.351551]
[1728014358153,0.02730577,61069.0,61068.0,0.337551]
[1728014358385,0.01866014,61069.0,61068.0,0.351551]
[1728014358825,0.01866014,61069.0,61068.0,0.365551]
[1728014359040,0.01866014,61069.0,61068.0,0.351551]
[1728014359487,0.01866014,61069.0,61068.0,0.365551]
[1728014360558,0.001638,61069.0,61068.0,0.365551]
[1728014360811,0.01868101,61069.0,61068.0,0.365551]
[1728014361018,0.001638,61069.0,61068.0,0.365551]
[1728014361247,0.0186809,61069.0,61068.0,0.365551]
[1728014361807,0.001638,61069.0,61068.0,0.365551]
[1728014362457,0.01869423,61069.0,61068.0,0.365551]
[1728014362660,0.01869509,61069.0,61068.0,0.365551]
[1728014369506,0.01872558,61069.0,61068.0,0.365551]
[1728014373494,0.001638,61069.0,61068.0,0.365551]
[1728014373713,0.01872299,61069.0,61068.0,0.365551]
[1728014374674,0.04439284,61069.0,61068.0,0.365551]
[1728014376054,0.04439284,61069.0,61068.0,0.388551]
[1728014378487,0.04439284,61069.0,61068.0,0.39271175]
[1728014380097,0.02730785,61069.0,61068.0,0.39271175]
[1728014380344,0.04443166,61069.0,61068.0,0.39271175]
[1728014382468,0.01876181,61069.0,61068.0,0.39271175]
[1728014383909,0.001638,61069.0,61068.0,0.39271175]
[1728014384388,0.03588386,61069.0,61068.0,0.39271175]
[1728014385560,0.03588386,61069.0,61068.0,0.39352975]
[1728014386900,0.06155627,61069.0,61068.0,0.39352975]
[1728014387813,0.06155627,61069.0,61068.0,0.55671646]
[1728014387816,0.06155627,61069.0,61068.0,0.60578689]
[1728014388041,0.03588116,61069.0,61068.0,0.55671646]
[1728014388304,0.01876107,61069.0,61068.0,0.55671646]
[1728014388569,0.01876107,61069.0,61068.0,0.6303221]
[1728014389450,0.01876107,61069.0,61068.0,0.63034512]
[1728014389663,0.001638,61069.0,61068.0,0.63034512]
[1728014390527,0.001638,61069.0,61068.0,0.55671646]
[1728014390741,0.001638,61069.0,61068.0,0.63036654]
[1728014391617,0.001638,61069.0,61068.0,0.55671646]
[1728014392068,0.001638,61069.0,61068.0,0.65688801]
[1728014393273,0.001638,61069.0,61068.0,0.6814309]
[1728014394399,0.001638,61069.0,61068.0,0.68153433]
[1728014394625,0.001638,61069.0,61068.0,0.55671646]
[1728014396072,0.001638,61069.0,61068.0,0.67953433]
[1728014396534,0.001638,61069.0,61068.0,0.65497737]
[1728014396769,0.001638,61069.0,61068.0,0.67953433]
[1728014397203,0.001638,61069.0,61068.0,0.55671646]
[1728014400017,0.001638,61069.0,61068.0,0.6795486]
[1728014400248,0.001638,61069.0,61068.0,0.55671646]
[1728014402076,0.001638,61069.0,61068.0,0.6815486]
[1728014402564,0.001638,61069.0,61068.0,0.55671646]
[1728014403114,0.001638,61069.0,61068.0,0.55871646]
[1728014404345,0.001638,61069.0,61068.0,0.55671646]
[1728014404579,0.001638,61069.0,61068.0,0.67953619]
[1728014404835,0.001638,61069.0,61068.0,0.55871646]
[1728014406396,0.001638,61069.0,61068.0,0.55671646]
[1728014408940,0.02730541,61069.0,61068.0,0.55871646]
[1728014410094,0.001638,61069.0,61068.0,0.55871646]
[1728014410349,0.001638,61069.0,61068.0,0.55671646]
[1728014410869,0.001638,61069.0,61068.0,0.65495787]
[1728014411092,0.01834489,61069.0,61068.0,0.65495787]
[1728014412219,0.01834489,61069.0,61068.0,0.55775787]
[1728014412453,0.01834489,61069.0,61068.0,0.48115787]
[1728014413164,0.01834489,61069.0,61068.0,0.45245007]
[1728014413400,0.01814547,61069.0,61068.0,0.45245007]
[1728014413621,0.11354547,61069.0,61068.0,0.26626336]
[1728014414305,0.13901577,61069.0,61068.0,0.26626336]
[1728014414767,0.13876802,61069.0,61068.0,0.26626336]
[1728014415458,0.13846787,61069.0,61068.0,0.26626336]
[1728014415692,0.11279815,61069.0,61068.0,0.24170868]
[1728014416999,0.11279815,61069.0,61068.0,0.24171203]
[1728014417440,0.11279815,61069.0,61068.0,0.192569]
[1728014418562,0.112498,61069.0,61068.0,0.192569]
[1728014418781,0.0954,61069.0,61068.0,0.192569]
[1728014420555,0.097036,61069.0,61068.0,0.192569]
[1728014420806,0.001636,61069.0,61068.0,0.192569]
[1728014421048,0.001636,61069.0,61068.0,0.19584364]
[1728014422684,0.00127541,61069.0,61068.0,0.19584364]
[1728014422912,0.02694517,61069.0,61068.0,0.19584364]
[1728014423595,0.02694517,61069.0,61068.0,0.215569]
[1728014423812,0.02644356,61069.0,61068.0,0.215569]
[1728014426121,0.0007738,61069.0,61068.0,0.215569]
[1728014427240,0.0007738,61069.0,61068.0,0.38203019]
[1728014427469,0.0007738,61069.0,61068.0,0.37875571]
[1728014427688,0.0007738,61069.0,61068.0,0.43217661]
[1728014427906,0.0007738,61069.0,61068.0,0.52877661]
[1728014430596,0.01776349,61069.0,61068.0,0.52877661]
[1728014431203,0.01776164,61069.0,61068.0,0.52877661]
[1728014432842,0.01776164,61069.0,61068.0,0.47964847]
[1728014435083,0.01776671,61069.0,61068.0,0.47964847]
[1728014435517,0.01776671,61069.0,61068.0,0.55334069]
[1728014435741,0.01776671,61069.0,61068.0,0.47964847]
[1728014437748,0.01776671,61069.0,61068.0,0.55333686]
[1728014437981,0.01776671,61069.0,61068.0,0.47964847]
[1728014438639,0.01778469,61069.0,61068.0,0.47964847]
[1728014439715,0.01778469,61069.0,61068.0,0.55333686]
[1728014439940,0.01778469,61069.0,61068.0,0.47964847]
[1728014440383,0.01778469,61069.0,61068.0,0.55333686]
[1728014441306,0.01778469,61069.0,61068.0,0.52533686]
[1728014441790,0.01778469,61069.0,61068.0,0.55333686]
[1728014442010,0.0007738,61069.0,61068.0,0.53933686]
[1728014442230,0.01779277,61069.0,61068.0,0.53933686]
[1728014442421,0.01779277,61069.0,61068.0,0.55333686]
[1728014442669,0.01779277,61069.0,61068.0,0.47964847]
[1728014443138,0.01779277,61069.0,61068.0,0.46564847]
[1728014443349,0.01779277,61069.0,61068.0,0.53935374]
[1728014445157,0.01779277,61069.0,61068.0,0.55335374]
[1728014445398,0.01779277,61069.0,61068.0,0.53935374]
[1728014445841,0.01779277,61069.0,61068.0,0.55335733]
[1728014446070,0.01779277,61069.0,61068.0,0.53935733]
[1728014446509,0.01779277,61069.0,61068.0,0.55335733]
[1728014446955,0.01779277,61069.0,61068.0,0.46564847]
[1728014447179,0.01779277,61069.0,61068.0,0.56391836]
[1728014447608,0.01779277,61069.0,61068.0,0.57791836]
[1728014447830,0.01779277,61069.0,61068.0,0.53935856]
[1728014448052,0.01779277,61069.0,61068.0,0.46564847]
[1728014448273,0.01779277,61069.0,61068.0,0.47964847]
[1728014448498,0.01779277,61069.0,61068.0,0.55336017]
[1728014448972,0.0007738,61069.0,61068.0,0.55336017]
[1728014449260,0.01779004,61069.0,61068.0,0.55336017]
[1728014449489,0.01779004,61069.0,61068.0,0.47964847]
[1728014450175,0.01779004,61069.0,61068.0,0.55336488]
[1728014450399,0.01779004,61069.0,61068.0,0.47964847]
[1728014450635,0.01779004,61069.0,61068.0,0.55336898]
[1728014451543,0.01779004,61069.0,61068.0,0.47964847]
[1728014452878,0.01779868,61069.0,61068.0,0.47964847]
[1728014453585,0.01779868,61069.0,61068.0,0.57793626]
[1728014455589,0.01779868,61069.0,61068.0,0.6762707]
[1728014456300,0.01779868,61069.0,61068.0,0.57793626]
[1728014456538,0.01780279,61069.0,61068.0,0.57793626]
[1728014457067,0.01780278,61069.0,61068.0,0.57793626]
[1728014457287,0.01780278,61069.0,61068.0,0.70286884]
[1728014457503,0.01780278,61069.0,61068.0,0.70086884]
[1728014457979,0.01780278,61069.0,61068.0,0.57793626]
[1728014458208,0.01780278,61069.0,61068.0,0.70086734]
[1728014458431,0.01780278,61069.0,61068.0,0.7008642]
[1728014458646,0.01780278,61069.0,61068.0,0.7008624]
[1728014459294,0.01780278,61069.0,61068.0,0.57793626]
[1728014460224,0.01778186,61069.0,61068.0,0.57793626]
[1728014460458,0.01778186,61069.0,61068.0,0.7028624]
[1728014460687,0.01778186,61069.0,61068.0,0.7008624]
[1728014461134,0.01778186,61069.0,61068.0,0.57793626]
[1728014461575,0.01778186,61069.0,61068.0,0.57993626]
[1728014461762,0.01778186,61069.0,61068.0,0.57793626]
[1728014462212,0.01778186,61069.0,61068.0,0.7008769]
[1728014462653,0.0007738,61069.0,61068.0,0.7008769]
[1728014462892,0.01779591,61069.0,61068.0,0.7008769]
[1728014463404,0.01779591,61069.0,61068.0,0.60258911]
[1728014463622,0.01779591,61069.0,61068.0,0.58858911]
[1728014463846,0.01779591,61069.0,61068.0,0.57658911]
[1728014464070,0.01779591,61069.0,61068.0,0.60458911]
[1728014464292,0.01779591,61069.0,61068.0,0.47964847]
[1728014464508,0.01779591,61069.0,61068.0,0.60259435]
[1728014466770,0.01779591,61069.0,61068.0,0.60459435]
[1728014467011,0.01779591,61069.0,61068.0,0.48164847]
[1728014467286,0.01779591,61069.0,61068.0,0.58664847]
[1728014467509,0.0007738,61069.0,61068.0,0.72772623]
[1728014472400,0.24468224,61083.0,61082.0,0.163714]
[1728014472647,0.26172838,61083.0,61082.0,0.163714]
[1728014473124,0.26172838,61083.0,61080.0,0.327438]
[1728014473125,0.076718,61087.0,61086.0,0.163703]
[1728014473354,0.09377249,61087.0,61086.0,0.163703]
[1728014473588,0.18377249,61087.0,61086.0,0.163703]
[1728014474287,0.18377249,61087.0,61086.0,0.165703]
[1728014474514,0.18377249,61087.0,61086.0,0.163703]
[1728014475251,0.10787249,61087.0,61086.0,0.163703]
[1728014475706,0.1335357,61087.0,61086.0,0.163703]
[1728014475950,0.0435357,61087.0,61086.0,0.164703]
[1728014476185,0.0435357,61087.0,61086.0,0.163703]
[1728014476423,0.02648121,61087.0,61086.0,0.171703]
[1728014476656,0.04354555,61087.0,61086.0,0.169703]
[1728014476889,0.02648121,61087.0,61086.0,0.176703]
[1728014477129,0.04354548,61087.0,61086.0,0.170703]
[1728014477371,0.04354548,61087.0,61086.0,0.163703]
[1728014477596,0.01788227,61087.0,61086.0,0.180703]
[1728014479979,0.000818,61087.0,61086.0,0.180703]
[1728014480203,0.01788669,61087.0,61086.0,0.180703]
[1728014480672,0.01788669,61087.0,61086.0,0.172703]
[1728014480904,0.01788669,61087.0,61086.0,0.171703]
[1728014480905,0.01788123,61087.0,61086.0,0.171703]
[1728014481133,0.01788123,61087.0,61086.0,0.180703]
[1728014481356,0.0165225,61087.0,61086.0,0.171703]
[1728014481819,0.0165225,61087.0,61086.0,0.180703]
[1728014482540,0.0165225,61087.0,61086.0,0.172703]
[1728014482779,0.0165225,61087.0,61086.0,0.180703]
[1728014483244,0.000818,61091.0,61089.0,0.163695]
[1728014483733,0.000818,61091.0,61089.0,0.18996859]
[1728014483967,0.000818,61091.0,61089.0,0.3531553]
[1728014484213,0.000818,61091.0,61089.0,0.34988171]
[1728014485433,0.000818,61091.0,61089.0,0.35588171]
[1728014485669,0.000818,61091.0,61089.0,0.36088171]
[1728014485883,0.000818,61091.0,61089.0,0.36510709]
[1728014487582,0.000818,61091.0,61089.0,0.36010709]
[1728014487807,0.000818,61091.0,61089.0,0.35410709]
[1728014488046,0.000818,61091.0,61089.0,0.36810709]
[1728014488508,0.000818,61091.0,61089.0,0.38210709]
[1728014489003,0.000818,61091.0,61089.0,0.39510709]
[1728014489461,0.000818,61091.0,61089.0,0.38210709]
[1728014489687,0.000818,61091.0,61089.0,0.39610709]
[1728014489926,0.000818,61091.0,61089.0,0.36810709]
[1728014490415,0.000818,61091.0,61089.0,0.35410709]
[1728014490636,0.000818,61091.0,61089.0,0.45000709]
[1728014490851,0.000818,61091.0,61089.0,0.47800709]
[1728014491813,0.000818,61091.0,61089.0,0.48000709]
[1728014492050,0.000818,61091.0,61089.0,0.59759744]
[1728014492278,0.000818,61091.0,61089.0,0.61159744]
[1728014492501,0.000818,61091.0,61089.0,0.56260709]
[1728014495582,0.000818,61091.0,61089.0,0.54860709]
[1728014495817,0.000818,61091.0,61089.0,0.56260709]
[1728014496036,0.000818,61091.0,61089.0,0.66760709]
[1728014496256,0.000818,61091.0,61089.0,0.65360709]
[1728014496500,0.000818,61091.0,61089.0,0.66760709]
[1728014501481,0.000818,61091.0,61089.0,0.71659744]
[1728014502707,0.000818,61091.0,61089.0,0.68859744]
[1728014502953,0.000818,61091.0,61089.0,0.70259744]
[1728014503198,0.000818,61091.0,61089.0,0.71659744]
[1728014503437,0.000818,61091.0,61089.0,0.74109262]
[1728014503883,0.000818,61091.0,61089.0,0.65360709]
[1728014504356,0.000818,61091.0,61089.0,0.74094452]
[1728014504582,0.000818,61091.0,61089.0,0.74094885]
[1728014504795,0.000818,61091.0,61089.0,0.65360709]
[1728014505253,0.000818,61091.0,61089.0,0.66760709]
[1728014505492,0.000818,61091.0,61089.0,0.65360709]
[1728014505725,0.000818,61091.0,61089.0,0.74095079]
[1728014510327,0.000818,61091.0,61089.0,0.66760709]
[1728014510767,0.000818,61091.0,61089.0,0.7409677]
[1728014511240,0.000818,61091.0,61089.0,0.66760709]
[1728014512388,0.000818,61091.0,61089.0,0.7655878]
[1728014512815,0.000818,61091.0,61089.0,0.74099491]
[1728014513023,0.000818,61091.0,61089.0,0.66760709]
[1728014513249,0.000818,61091.0,61089.0,0.7655878]
[1728014513478,0.000818,61091.0,61089.0,0.76546991]
[1728014514396,0.000818,61091.0,61089.0,0.66760709]
[1728014515098,0.000818,61091.0,61089.0,0.79008297]
[1728014515547,0.000818,61091.0,61089.0,0.72588413]
[1728014515996,0.000818,61091.0,61089.0,0.66760709]